fUSD/lending_fUSD_20241019
["ID","MTS","AMOUNT","RATE_DAILY","PERIOD"]
[340502630,1729365038788,-4898771.04868636,0.00011,2]
[340502639,1729365039827,-1033.87173578,0.00011,2]
[340502640,1729365040021,-471.16273653,0.00011,2]
[340502663,1729365042998,-16347.82281655,0.00011,2]
[340502667,1729365045837,-1680.73928235,0.00011,2]
[340502675,1729365081725,250.0,0.0001,2]
[340502676,1729365498650,595.64,8.756e-05,2]
[340502677,1729365664727,-23900.0,0.00010512,2]
[340502679,1729365762345,-2201.02330701,0.00010536,2]
[340502680,1729365762369,-150.0,0.00010579,2]
[340502681,1729365762392,-2201.02330701,0.00010583,2]
[340502682,1729365762417,-250.0,0.00010589,2]
[340502683,1729365954447,297.87044918,6.94e-05,2]
[340502684,1729366005387,565.85,8.815e-05,2]
[340502685,1729366035011,250.0,0.00010389,2]
[340502686,1729366037172,-858.24121275,0.00010593,2]
[340502687,1729366053062,-2201.01984495,0.00010593,2]
[340502688,1729366053088,-200.0,0.00010683,2]
[340502689,1729366053112,-705.31,0.00010693,2]
[340502690,1729366053135,-374.2,0.00010717,2]
[340502691,1729366053160,-300.0,0.00010736,2]
[340502692,1729366053185,-206.23,0.00010737,2]
[340502693,1729366053212,-6013.24015505,0.00010737,2]
[340502696,1729366092618,-472.0497,0.000108,2]
[340502697,1729366092641,-250.0,0.0001083,2]
[340502698,1729366092664,-2242.692952,0.000109,2]
[340502699,1729366092686,-1622.1573,0.000109,2]
[340502700,1729366092707,-413.9447,0.000109,2]
[340502701,1729366092730,-229.97092601,0.000109,2]
[340502702,1729366092754,-1290.6921954,0.000109,2]
[340502703,1729366092779,-5556.39249241,0.000109,2]
[340502716,1729366232244,-272.47,0.000109,2]
[340502717,1729366232259,-1141.14125551,0.000109,2]
[340502718,1729366232270,-419.66907032,0.000109,2]
[340502719,1729366232279,-959.01590308,0.000109,2]
[340502720,1729366232288,-159.73844961,0.00010908,2]
[340502721,1729366232297,-150.0,0.00010958,2]
[340502722,1729366232306,-158.59,0.00010959,2]
[340502723,1729366232315,-175.634,0.00010959,2]
[340502724,1729366232326,-150.0,0.00010959,2]
[340502725,1729366232335,-250.0,0.00010959,2]
[340502726,1729366232344,-162.94,0.00010959,2]
[340502727,1729366232353,-6626.47132148,0.00010959,2]
[340502728,1729366232364,-283.93839945,0.00010959,2]
[340502729,1729366232375,-354.88,0.00010959,2]
[340502730,1729366232386,-69.94827907,0.00010959,2]
[340502731,1729366232395,-641.54938032,0.00010998,2]
[340502732,1729366232419,-211.54061968,0.00010998,2]
[340502733,1729366232428,-110.72731141,0.00010998,2]
[340502734,1729366232440,-389.26268859,0.00010998,2]
[340502735,1729366232449,-150.01,0.00010999,2]
[340502736,1729366232459,-2060.7273114,0.00010999,2]
[340502745,1729366238125,-2564.7511365,0.00010999,2]
[340502746,1729366238136,-590.62314607,0.00010999,2]
[340502747,1729366238146,-449.59669731,0.00010999,2]
[340502748,1729366238158,-720.62291816,0.00010999,2]
[340502749,1729366238170,-5526.02889842,0.00010999,2]
[340502750,1729366238180,-201.20338884,0.00010999,2]
[340502751,1729366238189,-500.0,0.00010999,2]
[340502752,1729366238198,-156.29205166,0.00010999,2]
[340502753,1729366238208,-6873.87774533,0.00011,2]
[340502754,1729366238220,-435.33770526,0.00011,2]
[340502755,1729366238232,-3045.49932276,0.00011,2]
[340502756,1729366238244,-7442.804616,0.00011,2]
[340502757,1729366238255,-2139.24974855,0.00011,2]
[340502758,1729366238271,-1879.79073718,0.00011,2]
[340502759,1729366238281,-465.89215086,0.00011,2]
[340502760,1729366238414,-1048.11901464,0.00011,2]
[340502761,1729366238426,-728.78495617,0.00011,2]
[340502762,1729366238437,-504.46416423,0.00011,2]
[340502763,1729366238449,-585.41820824,0.00011,2]
[340502764,1729366238460,-2500.14790047,0.00011,2]
[340502765,1729366238471,-19584.17613878,0.00011,2]
[340502766,1729366238493,-1220.78618031,0.00011,2]
[340502767,1729366238504,-3534.44466044,0.00011,2]
[340502768,1729366238515,-15597.8082143,0.00011,2]
[340502769,1729366238526,-726.22550044,0.00011,2]
[340502770,1729366238537,-2289.53902093,0.00011,2]
[340502771,1729366238548,-11085.46497938,0.00011,2]
[340502772,1729366238559,-845.57482597,0.00011,2]
[340502778,1729366240114,-6367.9,0.00011,2]
[340502779,1729366240152,-1220.41203258,0.00011,2]
[340502780,1729366240191,-835.71347657,0.00011,2]
[340502781,1729366240515,-353.59275053,0.00011,2]
[340502782,1729366240526,-256.62236691,0.00011,2]
[340502797,1729366244405,-23573.58376527,0.00011,2]
[340502799,1729366244418,-338.66589701,0.00011,2]
[340502801,1729366244431,-2104.36813609,0.00011,2]
[340502803,1729366244443,-3013.83990087,0.00011,2]
[340502804,1729366244456,-3282.0027101,0.00011,2]
[340502805,1729366246039,-6134.45000001,0.00011,2]
[340502806,1729366246052,-1018.78273485,0.00011,2]
[340502807,1729366246064,-6138.4358,0.00011,2]
[340502808,1729366246076,-949.65,0.00011,2]
[340502809,1729366246088,-597.61986677,0.00011,2]
[340502810,1729366246160,-3698.90947184,0.00011,2]
[340502811,1729366246172,-263.86078829,0.00011,2]
[340502812,1729366246184,-24156.88704364,0.00011,2]
[340502813,1729366246206,-273.18016177,0.00011,2]
[340502814,1729366246317,-5798.71108862,0.00011,2]
[340502817,1729366524355,-300.0,0.00010899,2]
[340502818,1729366524381,-8833.13018364,0.000109,2]
[340502819,1729366524404,-910.81882911,0.000109,2]
[340502820,1729366524427,-186.14110927,0.000109,2]
[340502821,1729366524450,-150.0,0.00010999,2]
[340502822,1729366524473,-10808.74982852,0.00010999,2]
[340502823,1729366524496,-311.02455941,0.00010999,2]
[340502824,1729366524519,-176.01994873,0.00010999,2]
[340502825,1729366524541,-568.0,0.00011,2]
[340502826,1729366524568,-573102.49129335,0.00011,2]
[340502827,1729366524595,-1964653.62424797,0.00011,2]
[340502828,1729366539497,537.55,9.543e-05,2]
[340502829,1729366741285,68510.19330675,0.0001078,10]
[340502830,1729366741311,23209.24731188,0.0001078,10]
[340502831,1729366898285,250.0,0.0001,2]
[340502841,1729367227098,-259.39507872,0.00010774,2]
[340502842,1729367227119,-4.17617459,0.0001078,2]
[340502843,1729367228027,530.96,9.173e-05,2]
[340502844,1729367230085,-334.53131017,0.0001078,2]
[340502852,1729367388790,23900.0,9.899e-05,2]
[340502856,1729367415146,1000.0,9.898e-05,2]
[340502857,1729367432190,-150.0,0.00010726,2]
[340502858,1729367432200,-150.0,0.00010727,2]
[340502859,1729367432210,-150.0,0.00010733,2]
[340502860,1729367432220,-150.0,0.00010735,2]
[340502861,1729367432229,-150.0,0.0001074,2]
[340502862,1729367432238,-150.0,0.00010741,2]
[340502863,1729367432247,-150.0,0.00010751,2]
[340502864,1729367432256,-150.0,0.00010756,2]
[340502865,1729367432265,-150.0,0.00010761,2]
[340502866,1729367432275,-150.0,0.00010765,2]
[340502867,1729367432284,-150.0,0.00010765,2]
[340502868,1729367432293,-150.0,0.00010765,2]
[340502869,1729367432303,-1284.0,0.00010765,2]
[340502870,1729367432314,-535.511,0.00010765,2]
[340502871,1729367432325,-65.479,0.00010765,2]
[340502872,1729367432334,-150.0,0.00010768,2]
[340502873,1729367432344,-5529.48251524,0.0001078,2]
[340502874,1729367432353,-263.0,0.00010781,2]
[340502875,1729367432362,-196.24225277,0.00010785,2]
[340502876,1729367432371,-150.0,0.00010787,2]
[340502877,1729367432380,-150.0,0.0001079,2]
[340502878,1729367432389,-150.0,0.00010791,2]
[340502879,1729367432399,-150.0,0.00010802,2]
[340502880,1729367432408,-150.0,0.00010813,2]
[340502881,1729367432417,-150.0,0.00010819,2]
[340502882,1729367432426,-150.0,0.00010824,2]
[340502883,1729367432435,-150.0,0.00010826,2]
[340502884,1729367432445,-300.0,0.00010829,2]
[340502885,1729367432454,-150.0,0.0001083,2]
[340502886,1729367432463,-150.0,0.0001083,2]
[340502887,1729367432472,-150.0,0.00010834,2]
[340502888,1729367432481,-150.0,0.00010837,2]
[340502889,1729367432491,-150.0,0.00010847,2]
[340502890,1729367432500,-150.0,0.0001085,2]
[340502891,1729367432509,-150.0,0.00010851,2]
[340502892,1729367432518,-150.0,0.00010852,2]
[340502893,1729367432527,-150.0,0.00010852,2]
[340502894,1729367432537,-150.0,0.00010853,2]
[340502895,1729367432546,-150.0,0.00010859,2]
[340502896,1729367432556,-150.0,0.00010859,2]
[340502897,1729367432565,-150.0,0.00010863,2]
[340502898,1729367432574,-150.0,0.00010869,2]
[340502900,1729367432583,-150.0,0.00010873,2]
[340502902,1729367432592,-156.21976284,0.00010877,2]
[340502904,1729367432602,-150.0,0.00010878,2]
[340502905,1729367432610,-150.0,0.00010879,2]
[340502907,1729367432621,-150.0,0.00010887,2]
[340502909,1729367432630,-150.0,0.00010889,2]
[340502911,1729367432639,-150.0,0.00010889,2]
[340502913,1729367432648,-150.0,0.00010896,2]
[340502915,1729367432657,-160.17254404,0.000109,2]
[340502917,1729367432666,-150.0,0.00010901,2]
[340502919,1729367432675,-150.0,0.00010902,2]
[340502921,1729367432684,-150.0,0.00010903,2]
[340502923,1729367432693,-150.0,0.0001091,2]
[340502925,1729367432703,-150.0,0.00010912,2]
[340502927,1729367432712,-150.0,0.00010915,2]
[340502929,1729367432722,-150.0,0.00010915,2]
[340502931,1729367432731,-150.0,0.00010915,2]
[340502933,1729367432740,-150.0,0.00010917,2]
[340502935,1729367432750,-150.0,0.00010923,2]
[340502937,1729367432759,-150.0,0.00010924,2]
[340502938,1729367432768,-150.0,0.00010925,2]
[340502940,1729367432777,-150.0,0.00010927,2]
[340502941,1729367432786,-150.0,0.00010932,2]
[340502942,1729367432796,-150.0,0.00010932,2]
[340502943,1729367432805,-150.0,0.00010934,2]
[340502944,1729367432815,-150.0,0.00010935,2]
[340502945,1729367432824,-150.0,0.00010942,2]
[340502946,1729367432834,-150.0,0.00010943,2]
[340502947,1729367432844,-150.0,0.00010944,2]
[340502948,1729367432853,-150.0,0.00010944,2]
[340502949,1729367432862,-1000.0,0.00010945,2]
[340502950,1729367432874,-1000.0,0.00010945,2]
[340502951,1729367432883,-1000.0,0.00010945,2]
[340502952,1729367432891,-1000.0,0.00010945,2]
[340502953,1729367432901,-1000.0,0.00010945,2]
[340502954,1729367432912,-1000.0,0.00010945,2]
[340502955,1729367433062,-1000.0,0.00010945,2]
[340502956,1729367433072,-1000.0,0.00010945,2]
[340502957,1729367433082,-1000.0,0.00010945,2]
[340502958,1729367433092,-1000.0,0.00010945,2]
[340502959,1729367433101,-1000.0,0.00010945,2]
[340502960,1729367433112,-1000.0,0.00010945,2]
[340502961,1729367433121,-892.8708,0.00010945,2]
[340502962,1729367433131,-150.0,0.00010946,2]
[340502963,1729367433141,-150.0,0.00010947,2]
[340502964,1729367433150,-150.0,0.00010948,2]
[340502965,1729367433160,-150.0,0.0001095,2]
[340502966,1729367433170,-150.0,0.00010954,2]
[340502967,1729367433180,-150.0,0.00010958,2]
[340502968,1729367433189,-157.62,0.00010959,2]
[340502969,1729367433199,-150.0,0.00010969,2]
[340502970,1729367433212,-150.0,0.0001097,2]
[340502971,1729367433222,-150.0,0.00010978,2]
[340502972,1729367433231,-150.0,0.00010979,2]
[340502973,1729367433240,-150.0,0.00010986,2]
[340502974,1729367433250,-150.0,0.00010987,2]
[340502975,1729367433259,-168.75603812,0.0001099,2]
[340502976,1729367433269,-150.0,0.00010996,2]
[340502977,1729367433278,-150.0,0.00010998,2]
[340502978,1729367433287,-150.0,0.00010999,2]
[340502979,1729367433298,-515.0,0.00011,2]
[340502980,1729367433308,-154880.15708616,0.00011,2]
[340502981,1729367433321,-608.86029484,0.00011,2]
[340502982,1729367433344,-40070.87040502,0.00011,2]
[340502983,1729367433355,-48725.10715254,0.00011,2]
[340502984,1729367433367,-6629.97031715,0.00011,2]
[340502985,1729367433379,-14995.61095047,0.00011,2]
[340502986,1729367433393,-377.39865896,0.00011,2]
[340502987,1729367433405,-3273.10212446,0.00011,2]
[340502988,1729367433417,-9058.09230667,0.00011,2]
[340502989,1729367433431,-29055.40019793,0.00011,2]
[340502990,1729367433443,-9628.0679034,0.00011,2]
[340502991,1729367433463,-4268.90659672,0.00011,2]
[340502992,1729367433474,-638.67272336,0.00011,2]
[340502993,1729367438184,-669.980028,0.00011,2]
[340502994,1729367438196,-13596.6387777,0.00011,2]
[340502997,1729367438254,-441.66001173,0.00011,2]
[340502998,1729367438266,-932.219486,0.00011,2]
[340502999,1729367438277,-1355.02815999,0.00011,2]
[340503000,1729367438288,-1698.91124941,0.00011,2]
[340503001,1729367438300,-775.44461026,0.00011,2]
[340503002,1729367438317,-13346.76716289,0.00011,2]
[340503003,1729367438327,-480.0068938,0.00011,2]
[340503004,1729367438339,-14478.83820164,0.00011,2]
[340503005,1729367438351,-521.17192969,0.00011,2]
[340503006,1729367438361,-5811.84764848,0.00011,2]
[340503007,1729367438380,-440.1604635,0.00011,2]
[340503008,1729367438391,-10053.68114344,0.00011,2]
[340503009,1729367438404,-24059.66385186,0.00011,2]
[340503010,1729367438417,-20820.71753437,0.00011,2]
[340503011,1729367438428,-252901.90401085,0.00011,2]
[340503012,1729367438441,-877.11585098,0.00011,2]
[340503013,1729367438452,-2704.63123454,0.00011,2]
[340503014,1729367438465,-290.08119832,0.00011,2]
[340503015,1729367438476,-5314.22404625,0.00011,2]
[340503016,1729367438487,-193845.85546065,0.00011,2]
[340503017,1729367438499,-383.0033242,0.00011,2]
[340503018,1729367438511,-858.216,0.00011,2]
[340503019,1729367438524,-319.24299861,0.00011,2]
[340503020,1729367438535,-326.10600187,0.00011,2]
[340503035,1729367440123,-787.15812301,0.00011,2]
[340503036,1729367440297,-912.535554,0.00011,2]
[340503037,1729367440360,-1595.0,0.00011,2]
[340503038,1729367440372,-1169.8360112,0.00011,2]
[340503039,1729367440424,-134820.26329716,0.00011,2]
[340503040,1729367440435,-48112.81616401,0.00011,2]
[340503041,1729367440446,-292453.89584133,0.00011,2]
[340503042,1729367440488,-1883.44260925,0.00011,2]
[340503105,1729367443578,-241259.52471893,0.00011,2]
[340503106,1729367443590,-900.0,0.00011,2]
[340503107,1729367443601,-489.48,0.00011,2]
[340503113,1729367446381,-345.300506,0.00011,2]
[340503114,1729367446443,-2059.33678768,0.00011,2]
[340503115,1729367446457,-21024.84344086,0.00011,2]
[340503116,1729367446469,-416579.21132107,0.00011,2]
[340503117,1729367446483,-291.21894757,0.00011,2]
[340503121,1729367621032,150.0,0.00027,60]
[340503122,1729367793923,605.74,9.174e-05,2]
[340503123,1729367902821,164.43,0.00010171,2]
[340503124,1729367903028,164.43,0.00010222,2]
[340503126,1729367998831,200.0,0.00010193,2]
[340503127,1729368174379,250.0,0.00010173,2]
[340503128,1729368237219,354.37,0.00010249,2]
[340503129,1729368252701,162.81,0.00010212,2]
[340503130,1729368349399,250.0,0.00010257,2]
[340503131,1729368392786,575.45,8.411e-05,2]
[340503132,1729368435916,23900.0,0.00010317,2]
[340503133,1729368632308,-334.69318495,0.00010575,2]
[340503134,1729368632318,-840.0,0.00010621,2]
[340503135,1729368632328,-575.45,0.00010675,2]
[340503136,1729368632338,-150.0,0.000107,2]
[340503137,1729368632347,-324.5863,0.000107,2]
[340503138,1729368632357,-1764.66312539,0.000107,2]
[340503139,1729368632366,-300.0,0.00010799,2]
[340503140,1729368632376,-255.5443,0.00010799,2]
[340503141,1729368632386,-11667.0562,0.000108,2]
[340503142,1729368632395,-640.27171663,0.00010873,2]
[340503143,1729368632404,-150.0,0.00010889,2]
[340503144,1729368632414,-1000.0,0.00010889,2]
[340503145,1729368632424,-3754.1,0.00010889,2]
[340503146,1729368632433,-8827.07,0.00010889,2]
[340503147,1729368632443,-124486.13564563,0.0001089,2]
[340503148,1729368632452,-9107.219242,0.00010899,2]
[340503149,1729368632461,-858.671,0.000109,2]
[340503150,1729368632471,-784.9775,0.000109,2]
[340503151,1729368632480,-2643.74,0.000109,2]
[340503152,1729368632490,-336.3384,0.000109,2]
[340503153,1729368632500,-14739.0034,0.000109,2]
[340503154,1729368632509,-2537.4363,0.000109,2]
[340503155,1729368632519,-150.99,0.000109,2]
[340503156,1729368632529,-499.99,0.000109,2]
[340503157,1729368632538,-302.38,0.000109,2]
[340503158,1729368632547,-2438.82,0.000109,2]
[340503159,1729368632556,-798.62,0.000109,2]
[340503160,1729368632565,-1145.43142621,0.000109,2]
[340503161,1729368632574,-500.0,0.00010958,2]
[340503162,1729368632584,-500.0,0.00010958,2]
[340503163,1729368632593,-500.0,0.00010958,2]
[340503164,1729368632602,-168.46610361,0.00010958,2]
[340503165,1729368632612,-1362.98618409,0.00010958,2]
[340503166,1729368632631,-2401.55381591,0.00010958,2]
[340503167,1729368632641,-646.31,0.00010958,2]
[340503168,1729368632650,-159.23,0.00010959,2]
[340503169,1729368632659,-250.0,0.00010959,2]
[340503170,1729368632669,-158.59,0.00010959,2]
[340503171,1729368632678,-500.0,0.00010959,2]
[340503173,1729368632688,-150.0,0.00010959,2]
[340503174,1729368632698,-500.0,0.00010973,2]
[340503175,1729368632707,-500.73979238,0.00010973,2]
[340503176,1729368632716,-23018.79926771,0.00011,2]
[340503178,1729368638323,-749.86877271,0.00011,2]
[340503179,1729368638376,-3863.74530095,0.00011,2]
[340503180,1729368638431,-683.19908056,0.00011,2]
[340503181,1729368638442,-8924.22354184,0.00011,2]
[340503182,1729368638590,-5819.32532934,0.00011,2]
[340503217,1729368640376,-441.27,0.00010959,2]
[340503218,1729368640386,-2794.09986576,0.00011,2]
[340503219,1729368640397,-794.1752011,0.00011,2]
[340503220,1729368640534,-77583.33641066,0.00011,2]
[340503221,1729368640544,-1232.1648457,0.00011,2]
[340503222,1729368640554,-15318.6336769,0.00011,2]
[340503223,1729368640563,-2252.7835512,0.00011,2]
[340503224,1729368640572,-201.21,0.00011153,2]
[340503225,1729368640581,-344.29,0.00011191,2]
[340503226,1729368640590,-281.07,0.000112,2]
[340503227,1729368640600,-381.55,0.000112,2]
[340503228,1729368640609,-421.41005681,0.00011372,2]
[340503229,1729368640618,-200.0,0.00011467,2]
[340503230,1729368640627,-2751.0,0.00011507,2]
[340503231,1729368640636,-344.29,0.00011751,2]
[340503232,1729368640646,-420.0,0.00011869,2]
[340503233,1729368640655,-150.0,0.00011934,2]
[340503234,1729368640665,-840.0,0.00011949,2]
[340503235,1729368640675,-300.0,0.00012,2]
[340503236,1729368640685,-44700.44,0.00012055,2]
[340503237,1729368640694,-164.49,0.00012148,2]
[340503238,1729368640704,-344.29,0.0001231,2]
[340503239,1729368640713,-9107.21924194,0.00012367,2]
[340503240,1729368640723,-164.51,0.00012445,2]
[340503241,1729368640732,-201.21,0.00012547,2]
[340503242,1729368640742,-200.0,0.00012741,2]
[340503243,1729368640751,-162.81,0.00012765,2]
[340503244,1729368640760,-344.29,0.0001287,2]
[340503245,1729368640770,-1145.43142614,0.000129,2]
[340503246,1729368640786,-575.45,0.00012939,2]
[340503247,1729368640795,-160.36927506,0.00013,4]
[340503248,1729368640804,-326.0,0.00013046,2]
[340503249,1729368640814,-840.0,0.00013277,2]
[340503250,1729368640823,-344.29,0.00013429,2]
[340503251,1729368640833,-500.0,0.00013698,2]
[340503252,1729368640842,-243.60604507,0.00013698,2]
[340503253,1729368640851,-51371.36,0.00013699,2]
[340503254,1729368640861,-200.0,0.00013699,2]
[340503255,1729368640871,-67961.2092845,0.000138,3]
[340503256,1729368640880,-22653.7364282,0.0001389,3]
[340503257,1729368640890,-9107.21924194,0.00013933,2]
[340503258,1729368640899,-201.21,0.00013941,2]
[340503259,1729368640909,-350.0,0.00014,2]
[340503260,1729368640918,-200.0,0.00014016,2]
[340503261,1729368640927,-22653.7364282,0.00014226,3]
[340503262,1729368640942,-22653.7364282,0.00014237,3]
[340503263,1729368640951,-61018.67,0.00014247,2]
[340503264,1729368640961,-354.37,0.00014348,2]
[340503265,1729368640971,-164.51,0.00014499,2]
[340503266,1729368640980,-840.0,0.00014604,2]
[340503267,1729368640990,-11326.8682141,0.00014837,3]
[340503268,1729368640999,-1145.43142614,0.000149,2]
[340503269,1729368641008,-1024.90848054,0.00015,2]
[340503270,1729368641018,-189.86,0.00015068,2]
[340503271,1729368641029,-575.45,0.00015203,2]
[340503272,1729368641038,-200.0,0.0001529,2]
[340503273,1729368641048,-162.81,0.00015318,2]
[340503274,1729368641058,-201.21,0.00015335,2]
[340503275,1729368641067,-7469.9065133,0.0001548,3]
[340503276,1729368641076,-9107.21924194,0.000155,2]
[340503277,1729368641085,-840.0,0.00015932,2]
[340503278,1729368641095,-400.0,0.00016,2]
[340503279,1729368641104,-953.0,0.000163,2]
[340503280,1729368641113,-2813.0,0.000163,2]
[340503281,1729368641123,-200.0,0.0001634,2]
[340503282,1729368641136,-287.78716393,0.00016438,2]
[340503283,1729368641145,-247.01,0.00016438,2]
[340503284,1729368641155,-189.86,0.00016438,2]
[340503285,1729368641164,-150.0,0.00016438,2]
[340503286,1729368641173,-158.06,0.00016712,2]
[340503287,1729368641182,-201.21,0.00016729,2]
[340503288,1729368641192,-150.0,0.00016871,2]
[340503289,1729368641201,-11326.8682141,0.00016874,3]
[340503290,1729368641211,-7469.9065133,0.00016874,3]
[340503291,1729368641220,-1145.43142614,0.000169,2]
[340503292,1729368641230,-9107.21924194,0.00017067,2]
[340503293,1729368641240,-150.0,0.00017304,2]
[340503294,1729368641249,-575.45,0.00017467,2]
[340503295,1729368641259,-150.0,0.00017736,2]
[340503296,1729368641268,-450.0,0.00018,2]
[340503297,1729368641283,-23372.96928363,0.00018,2]
[340503298,1729368641292,-150.0,0.00018169,2]
[340503299,1729368641301,-22653.7364282,0.00018336,4]
[340503300,1729368641311,-22409.7195399,0.00018336,4]
[340503301,1729368641320,-33980.6046423,0.00018346,4]
[340503302,1729368641330,-37349.5325665,0.00018346,4]
[340503303,1729368641338,-80904.76,0.00018356,2]
[340503304,1729368641347,-150.0,0.00018601,2]
[340503305,1729368641356,-11326.8682141,0.00018614,4]
[340503306,1729368641365,-7469.9065133,0.00018614,4]
[340503307,1729368641374,-9107.21924194,0.00018633,2]
[340503308,1729368641384,-1145.43142614,0.000189,2]
[340503309,1729368641393,-150.0,0.00019034,2]
[340503310,1729368641402,-7469.9065133,0.00019158,4]
[340503311,1729368641412,-529.0,0.00019168,2]
[340503312,1729368641421,-11326.8682141,0.00019168,4]
[340503313,1729368641431,-7469.9065133,0.00019168,4]
[340503314,1729368641440,-22801.27,0.00019178,2]
[340503315,1729368641450,-150.0,0.000192,2]
[340503316,1729368641459,-150.0,0.00019466,2]
[340503317,1729368641468,-161.89716127,0.00019631,2]
[340503318,1729368641478,-11326.8682141,0.00019673,4]
[340503319,1729368641487,-14939.8130266,0.00019673,4]
[340503320,1729368641497,-575.45,0.00019731,2]
[340503321,1729368641506,-150.0,0.00019899,2]
[340503322,1729368641516,-7469.9065133,0.00019943,4]
[340503323,1729368641526,-29879.6260532,0.0001997,4]
[340503324,1729368641535,-74699.065133,0.0001999,4]
[340503325,1729368641545,-40290.02884601,0.0002,5]
[340503326,1729368641554,-103638.88267734,0.0002,2]
[340503327,1729368641564,-2425.36286029,0.0002,2]
[340503328,1729368641573,-500.0,0.0002,2]
[340503329,1729368641583,-175.59,0.0002,2]
[340503330,1729368641592,-175.59,0.0002,2]
[340503331,1729368641601,-175.59,0.0002,2]
[340503332,1729368641610,-175.59,0.0002,2]
[340503333,1729368641620,-175.59,0.0002,2]
[340503334,1729368641629,-175.59,0.0002,2]
[340503335,1729368641639,-175.59,0.0002,2]
[340503336,1729368641648,-175.59,0.0002,2]
[340503337,1729368641657,-175.59,0.0002,2]
[340503338,1729368641666,-175.59,0.0002,2]
[340503339,1729368641676,-175.59,0.0002,2]
[340503340,1729368641685,-175.59,0.0002,2]
[340503341,1729368641695,-175.59,0.0002,2]
[340503342,1729368641704,-175.59,0.0002,2]
[340503343,1729368641714,-9107.21924194,0.000202,2]
[340503344,1729368641723,-247.01,0.00020274,2]
[340503345,1729368641733,-150.0,0.00020332,2]
[340503346,1729368641743,-7469.9065133,0.00020483,4]
[340503347,1729368641753,-500.0,0.00020493,2]
[340503348,1729368641762,-500.0,0.00020493,2]
[340503349,1729368641772,-500.0,0.00020493,2]
[340503350,1729368641782,-500.0,0.00020493,2]
[340503351,1729368641792,-500.0,0.00020493,2]
[340503352,1729368641802,-500.0,0.00020493,2]
[340503353,1729368641811,-500.0,0.00020493,2]
[340503354,1729368641821,-500.0,0.00020493,2]
[340503355,1729368641830,-500.0,0.00020493,2]
[340503356,1729368641840,-500.0,0.00020493,2]
[340503357,1729368641849,-500.0,0.00020493,2]
[340503358,1729368641860,-500.0,0.00020493,2]
[340503359,1729368641869,-500.0,0.00020493,2]
[340503360,1729368641879,-500.0,0.00020493,2]
[340503361,1729368641888,-500.0,0.00020493,2]
[340503362,1729368641897,-500.0,0.00020493,2]
[340503363,1729368641907,-500.0,0.00020493,2]
[340503364,1729368641916,-500.0,0.00020493,2]
[340503365,1729368641926,-500.0,0.00020493,2]
[340503366,1729368641939,-500.0,0.00020493,2]
[340503367,1729368641948,-500.0,0.00020493,2]
[340503368,1729368641957,-500.0,0.00020493,2]
[340503369,1729368641967,-500.0,0.00020493,2]
[340503370,1729368641977,-500.0,0.00020493,2]
[340503371,1729368641987,-500.0,0.00020493,2]
[340503372,1729368641996,-500.0,0.00020493,2]
[340503373,1729368642006,-500.0,0.00020493,2]
[340503374,1729368642016,-500.0,0.00020493,2]
[340503375,1729368642025,-500.0,0.00020493,2]
[340503376,1729368642034,-500.0,0.00020493,2]
[340503377,1729368642044,-500.0,0.00020493,2]
[340503378,1729368642055,-500.0,0.00020493,2]